bitfinex-derivatives/quotes_BTCF0:USTF0_20241023
["timestamp","ask_amount","ask_price","bid_price","bid_amount"]
[1729678423892,0.22397336,66551.0,66550.0,0.0379]
[1729678424616,0.22397336,66551.0,66550.0,0.113072]
[1729678424802,0.14880236,66551.0,66550.0,0.13963878]
[1729678425598,0.11,66551.0,66550.0,0.10173878]
[1729678425906,0.14857074,66551.0,66550.0,0.10173878]
[1729678426312,0.11,66551.0,66550.0,0.10173878]
[1729678426816,0.14860032,66551.0,66550.0,0.10173878]
[1729678427202,0.11,66551.0,66550.0,0.10173878]
[1729678427405,0.14857958,66551.0,66550.0,0.10173878]
[1729678427801,0.11,66551.0,66550.0,0.10173878]
[1729678428002,0.14855093,66551.0,66550.0,0.10173878]
[1729678428708,0.22372193,66551.0,66550.0,0.02656678]
[1729678428908,0.22372193,66551.0,66548.0,0.185174]
[1729678429109,0.03855093,66550.0,66548.0,0.185174]
[1729678429611,0.03855093,66550.0,66549.0,0.075173]
[1729678429912,0.03855093,66550.0,66549.0,0.185173]
[1729678430716,0.185172,66551.0,66549.0,0.24498928]
[1729678431199,0.185172,66551.0,66550.0,0.05981628]
[1729678431809,0.185172,66551.0,66549.0,0.24498928]
[1729678432007,0.185172,66551.0,66550.0,0.05981628]
[1729678433210,0.11,66551.0,66549.0,0.11]
[1729678433718,0.075172,66550.0,66549.0,0.11]
[1729678438413,0.17111845,66550.0,66549.0,0.11]
[1729678438605,0.20975529,66550.0,66549.0,0.11]
[1729678439615,0.15866802,66550.0,66549.0,0.11]
[1729678440510,0.15870375,66550.0,66549.0,0.11]
[1729678444118,0.15870375,66550.0,66548.0,0.0272195]
[1729678444119,0.075173,66549.0,66548.0,0.0272195]
[1729678444314,0.15877962,66549.0,66546.0,0.1472]
[1729678444619,0.08360662,66548.0,66546.0,0.222377]
[1729678444818,0.075173,66549.0,66546.0,0.28218703]
[1729678445407,0.075173,66549.0,66547.0,0.075176]
[1729678445610,0.11,66551.0,66546.0,0.20701003]
[1729678445919,0.11,66554.0,66549.0,0.11]
[1729678446220,0.07517,66552.0,66551.0,0.0449098]
[1729678450321,0.11,66554.0,66550.0,0.0449098]
[1729678450322,0.075171,66551.0,66550.0,0.0449098]
[1729678450529,0.075172,66550.0,66549.0,0.0449098]
[1729678452824,0.11387203,66550.0,66547.0,0.075175]
[1729678453021,0.03870003,66549.0,66547.0,0.075175]
[1729678453219,0.03870003,66548.0,66547.0,0.075175]
[1729678456235,0.14870003,66548.0,66547.0,0.075175]
[1729678456923,0.11,66548.0,66547.0,0.075175]
[1729678459924,0.14870504,66548.0,66547.0,0.075175]
[1729678460233,0.24481511,66548.0,66547.0,0.075175]
[1729678465127,0.24481511,66548.0,66546.0,0.0646719]
[1729678465329,0.13481511,66547.0,66546.0,0.1398489]
[1729678465728,0.20999111,66547.0,66546.0,0.0646719]
[1729678465934,0.13481511,66547.0,66546.0,0.0646719]
[1729678466237,0.13481511,66547.0,66546.0,0.1398489]
[1729678467938,0.11,66548.0,66547.0,0.075176]
[1729678468323,0.11,66548.0,66547.0,0.24673195]
[1729678469424,0.11,66548.0,66547.0,0.14994455]
[1729678470523,0.15045763,66577.0,66550.0,0.075172]
[1729678470524,0.075154,66566.0,66550.0,0.075172]
[1729678470825,0.075155,66565.0,66564.0,0.11]
[1729678471027,0.075158,66564.0,66561.0,0.05988736]
[1729678471234,0.0369,66573.0,66561.0,0.13504736]
[1729678471235,0.11,66562.0,66561.0,0.13504736]
[1729678471431,0.185155,66565.0,66562.0,0.075158]
[1729678471631,0.11,66563.0,66561.0,0.09698736]
[1729678472132,0.13406,66573.0,66561.0,0.09698736]
[1729678472133,0.11,66565.0,66561.0,0.09698736]
[1729678472331,0.075158,66563.0,66561.0,0.0371]
[1729678472635,0.11,66565.0,66561.0,0.09698736]
[1729678472834,0.185156,66565.0,66561.0,0.09698736]
[1729678473059,0.075157,66564.0,66561.0,0.09698736]
[1729678473344,0.11,66565.0,66561.0,0.0371]
[1729678473529,0.185155,66565.0,66564.0,0.04485615]
[1729678474331,0.075158,66563.0,66562.0,0.04485615]
[1729678474635,0.185158,66563.0,66562.0,0.04485615]
[1729678474834,0.22302446,66563.0,66561.0,0.0371]
[1729678475035,0.03786646,66562.0,66561.0,0.0371]
[1729678475231,0.03786646,66562.0,66561.0,0.06376783]
[1729678477537,0.185158,66563.0,66561.0,0.06376783]
[1729678477726,0.03777637,66562.0,66561.0,0.06376783]
[1729678479340,0.11293537,66562.0,66561.0,0.06376783]
[1729678479642,0.11293537,66562.0,66561.0,0.13892783]
[1729678479643,0.03777637,66562.0,66561.0,0.13892783]
[1729678480136,0.03777637,66562.0,66561.0,0.06376783]
[1729678480336,0.075159,66562.0,66561.0,0.02666783]
[1729678480551,0.07339817,66562.0,66558.0,0.11]
[1729678480844,0.03779817,66561.0,66559.0,0.075162]
[1729678481033,0.11,66560.0,66559.0,0.075162]
[1729678481930,0.14772424,66560.0,66559.0,0.075162]
[1729678482935,0.24141564,66560.0,66557.0,0.075163]
[1729678483144,0.19041426,66559.0,66557.0,0.185163]
[1729678483442,0.13141564,66558.0,66557.0,0.185163]
[1729678484847,0.13141564,66558.0,66557.0,0.075163]
[1729678489856,0.075162,66559.0,66555.0,0.15485615]
[1729678490049,0.075162,66559.0,66558.0,0.075163]
[1729678492346,0.11,66560.0,66556.0,0.04485615]
[1729678492565,0.11,66560.0,66559.0,0.075162]
[1729678492566,0.185162,66560.0,66559.0,0.075162]
[1729678495851,0.11,66560.0,66559.0,0.075162]
[1729678497946,0.11,66560.0,66555.0,0.06480168]
[1729678497947,0.23292884,66560.0,66555.0,0.06480168]
[1729678498151,0.1781145,66559.0,66555.0,0.06480168]
[1729678498352,0.12292884,66558.0,66557.0,0.075164]
[1729678500963,0.12292884,66558.0,66557.0,0.04184843]
[1729678505070,0.11,66560.0,66559.0,0.075162]
[1729678505257,0.11,66560.0,66559.0,0.17574159]
[1729678505866,0.185161,66560.0,66559.0,0.17574159]
[1729678509765,0.185161,66560.0,66559.0,0.1757463]
[1729678511269,0.185161,66560.0,66559.0,0.25060297]
[1729678513074,0.30472438,66560.0,66557.0,0.075163]
[1729678513268,0.17348483,66559.0,66558.0,0.075163]
[1729678513466,0.11956338,66559.0,66558.0,0.075163]
[1729678513862,0.19472538,66559.0,66558.0,0.075163]
[1729678514269,0.19472538,66559.0,66553.0,0.02669174]
[1729678514270,0.11956338,66559.0,66553.0,0.02669174]
[1729678514573,0.0356,66562.0,66551.0,0.11]
[1729678514574,0.075166,66556.0,66555.0,0.075166]
[1729678514760,0.19472938,66556.0,66555.0,0.075166]
[1729678515966,0.30472938,66556.0,66555.0,0.075166]
[1729678519283,0.30453238,66556.0,66555.0,0.075166]
[1729678520081,0.185166,66556.0,66555.0,0.29580671]
[1729678521875,0.185166,66556.0,66555.0,0.29578116]
[1729678527375,0.185166,66556.0,66555.0,0.17581336]
[1729678528180,0.30451383,66556.0,66555.0,0.075166]
[1729678530091,0.46995926,66556.0,66555.0,0.075166]
[1729678531086,0.30451383,66556.0,66555.0,0.075166]
[1729678532178,0.46995926,66556.0,66555.0,0.075166]
[1729678535083,0.35061143,66556.0,66555.0,0.17589013]
[1729678535394,0.185166,66556.0,66555.0,0.17589013]
[1729678538293,0.185166,66556.0,66555.0,0.075166]
[1729678538489,0.185166,66556.0,66555.0,0.17581878]
[1729678543193,0.185166,66556.0,66555.0,0.075166]
[1729678550091,0.30458267,66556.0,66555.0,0.075166]
[1729678551101,0.30458267,66556.0,66555.0,0.04216427]
[1729678551998,0.25843517,66556.0,66555.0,0.04216427]
[1729678554505,0.30458267,66556.0,66555.0,0.04216427]
[1729678558104,0.185166,66556.0,66555.0,0.14309975]
[1729678559805,0.075166,66556.0,66555.0,0.14309975]
[1729678561301,0.075166,66556.0,66555.0,0.23292632]
[1729678563123,0.075166,66556.0,66555.0,0.14309975]
[1729678565708,0.075166,66556.0,66555.0,0.14321134]
[1729678570415,0.075166,66556.0,66555.0,0.1433352]
[1729678573312,0.19375889,66556.0,66555.0,0.04216427]
[1729678573712,0.34375889,66556.0,66555.0,0.04216427]
[1729678576205,0.39768072,66556.0,66555.0,0.04216427]
[1729678578424,0.39768072,66556.0,66552.0,0.06435891]
[1729678578618,0.185169,66553.0,66552.0,0.13952891]
[1729678578926,0.30376189,66553.0,66552.0,0.13952891]
[1729678579920,0.30366458,66553.0,66552.0,0.13952891]
[1729678580125,0.185169,66553.0,66552.0,0.36156301]
[1729678581416,0.185169,66553.0,66552.0,0.12895405]
[1729678581417,0.295169,66553.0,66552.0,0.12895405]
[1729678581618,0.185169,66553.0,66552.0,0.12895405]
[1729678581818,0.295169,66553.0,66552.0,0.21920398]
[1729678582113,0.185169,66553.0,66552.0,0.12914299]
[1729678582319,0.185169,66553.0,66552.0,0.21920398]
[1729678582717,0.185169,66553.0,66552.0,0.12914299]
[1729678584621,0.185169,66553.0,66552.0,0.2499405]
[1729678588322,0.30349455,66553.0,66552.0,0.02765891]
[1729678588523,0.07517,66552.0,66551.0,0.075171]
[1729678588821,0.19349555,66552.0,66551.0,0.075171]
[1729678589025,0.19349555,66552.0,66551.0,0.10287375]
[1729678589522,0.19355286,66552.0,66551.0,0.10287375]
[1729678594329,0.23968808,66552.0,66551.0,0.10287375]
[1729678595337,0.06865803,66552.0,66551.0,0.32477195]
[1729678595637,0.04614804,66552.0,66551.0,0.32477195]
[1729678595830,0.04614804,66552.0,66551.0,0.20410645]
[1729678596436,0.12131804,66552.0,66551.0,0.20410645]
[1729678596735,0.15591804,66552.0,66551.0,0.20410645]
[1729678597836,0.10977,66552.0,66551.0,0.20410645]
[1729678598438,0.10977,66552.0,66551.0,0.2940906]
[1729678599136,0.10977,66552.0,66551.0,0.29369396]
[1729678600832,0.10977,66552.0,66551.0,0.20370981]
[1729678603243,0.14363564,66552.0,66551.0,0.02770275]
[1729678603440,0.06846564,66552.0,66546.0,0.11]
[1729678603739,0.075173,66550.0,66549.0,0.075172]
[1729678603940,0.10903864,66550.0,66549.0,0.075172]
[1729678604937,0.21903864,66550.0,66549.0,0.075172]
[1729678610342,0.185173,66550.0,66549.0,0.17600483]
[1729678612752,0.185173,66550.0,66549.0,0.29622377]
[1729678613454,0.185173,66550.0,66549.0,0.17602534]
[1729678618152,0.185173,66550.0,66549.0,0.17607531]
[1729678618351,0.25828011,66550.0,66549.0,0.075172]
[1729678618953,0.30442917,66550.0,66549.0,0.075172]
[1729678619943,0.14828011,66550.0,66549.0,0.075172]
[1729678620157,0.10900249,66550.0,66549.0,0.075172]
[1729678621565,0.1090482,66550.0,66549.0,0.075172]
[1729678624260,0.14837671,66550.0,66549.0,0.075172]
[1729678625258,0.075173,66550.0,66549.0,0.29545692]
[1729678629653,0.075173,66550.0,66549.0,0.1004967]
[1729678630053,0.075173,66550.0,66549.0,0.29550877]
[1729678630268,0.075173,66550.0,66549.0,0.1756697]
[1729678630564,0.075173,66550.0,66549.0,0.29558856]
[1729678633361,0.075173,66550.0,66549.0,0.075173]
[1729678640272,0.19550549,66550.0,66549.0,0.075173]
[1729678641977,0.19551365,66550.0,66549.0,0.075173]
[1729678642371,0.075173,66550.0,66549.0,0.075173]
[1729678642970,0.19551476,66550.0,66549.0,0.075173]
[1729678643467,0.075173,66550.0,66549.0,0.075173]
[1729678648882,0.075173,66550.0,66549.0,0.26573432]
[1729678649482,0.075173,66550.0,66549.0,0.19056132]
[1729678650382,0.075173,66550.0,66549.0,0.1005484]
[1729678653990,0.075173,66550.0,66549.0,0.22038933]
[1729678663210,0.075173,66550.0,66546.0,0.02749692]
[1729678663211,0.075176,66548.0,66546.0,0.02749692]
[1729678663498,0.19563453,66547.0,66546.0,0.075177]
[1729678665393,0.19423166,66547.0,66546.0,0.075177]
[1729678666303,0.27441915,66547.0,66546.0,0.075177]
[1729678666503,0.10891253,66547.0,66546.0,0.075177]
[1729678666707,0.15506197,66547.0,66546.0,0.075177]
[1729678666909,0.19423166,66547.0,66546.0,0.075177]
[1729678667600,0.19423166,66547.0,66546.0,0.1020243]
[1729678670106,0.19430284,66547.0,66546.0,0.1020243]
[1729678670304,0.075176,66547.0,66546.0,0.32363807]
[1729678677911,0.075176,66547.0,66546.0,0.20312508]
[1729678678310,0.1481611,66547.0,66546.0,0.1020243]
[1729678680713,0.2581611,66547.0,66546.0,0.0268473]
[1729678680919,0.2581611,66547.0,66543.0,0.1]
[1729678680920,0.075179,66544.0,66543.0,0.1]
[1729678681107,0.2581641,66544.0,66543.0,0.1]
[1729678681701,0.1481641,66544.0,66543.0,0.1]
[1729678681904,0.0729851,66544.0,66543.0,0.20202212]
[1729678682125,0.15020623,66556.0,66551.0,0.075171]
[1729678682307,0.15020623,66556.0,66555.0,0.075167]
[1729678682513,0.15020623,66556.0,66555.0,0.185167]
[1729678683017,0.0008784,66566.0,66562.0,0.075159]
[1729678683242,0.0008784,66566.0,66565.0,0.075155]
[1729678683520,0.0008784,66566.0,66565.0,0.185155]
[1729678685009,0.00139902,66573.0,66569.0,0.075151]
[1729678685205,0.07718684,66580.0,66576.0,0.075143]
[1729678685418,0.07718684,66580.0,66576.0,0.185143]
[1729678685419,0.00204784,66580.0,66576.0,0.185143]
[1729678685715,0.00204784,66580.0,66576.0,0.17509911]
[1729678685929,0.07718684,66580.0,66576.0,0.17509911]
[1729678687110,0.07718684,66580.0,66576.0,0.20186001]
[1729678687308,0.07718684,66580.0,66576.0,0.1019039]
[1729678687914,0.07718684,66580.0,66576.0,0.27609216]
[1729678688117,0.07718684,66580.0,66576.0,0.17651978]
[1729678688317,0.07718684,66580.0,66576.0,0.1019039]
[1729678691814,0.11,66578.0,66576.0,0.1019039]
[1729678692419,0.11,66578.0,66576.0,0.16148142]
[1729678693318,0.03659557,66577.0,66576.0,0.1019039]
[1729678693519,0.12284835,66577.0,66576.0,0.1019039]
[1729678695321,0.07672082,66577.0,66576.0,0.1019039]
[1729678695819,0.07672082,66577.0,66576.0,0.11]
[1729678695820,0.12284835,66577.0,66576.0,0.11]
[1729678696011,0.12284835,66577.0,66576.0,0.185143]
[1729678696822,0.12053039,66577.0,66576.0,0.185143]
[1729678699725,0.19567239,66577.0,66576.0,0.185143]
[1729678700310,0.07717803,66577.0,66576.0,0.185143]
[1729678702616,0.07717803,66577.0,66576.0,0.075143]
[1729678702820,0.11237803,66577.0,66576.0,0.075143]
[1729678703021,0.11237803,66577.0,66574.0,0.02643427]
[1729678703022,0.075144,66575.0,66574.0,0.02643427]
[1729678703210,0.11,66576.0,66573.0,0.075145]
[1729678703415,0.075145,66574.0,66573.0,0.075145]
[1729678706027,0.075145,66574.0,66573.0,0.10171912]
[1729678708030,0.185145,66574.0,66573.0,0.10171912]
[1729678710930,0.11,66574.0,66573.0,0.10171912]
[1729678712432,0.11770954,66574.0,66573.0,0.10171912]
[1729678715535,0.185144,66575.0,66574.0,0.075145]
[1729678716135,0.11,66575.0,66574.0,0.075145]
[1729678722830,0.03723603,66577.0,66576.0,0.075143]
[1729678723037,0.14723603,66577.0,66576.0,0.075143]
[1729678723925,0.22237803,66577.0,66576.0,0.075143]
[1729678728734,0.22237803,66577.0,66576.0,0.10280293]
[1729678730632,0.34016079,66577.0,66576.0,0.05863537]
[1729678737144,0.3393481,66577.0,66576.0,0.05863537]
[1729678737645,0.22237803,66577.0,66576.0,0.23490935]
[1729678740446,0.22237803,66577.0,66576.0,0.13325125]
[1729678741232,0.22237803,66577.0,66576.0,0.05863537]
[1729678741438,0.075146,66573.0,66571.0,0.07461588]
[1729678741646,0.185149,66572.0,66571.0,0.075148]
[1729678742234,0.11,66572.0,66569.0,0.07461588]
[1729678742436,0.11,66572.0,66571.0,0.05998238]
[1729678742437,0.185147,66572.0,66571.0,0.05998238]
[1729678742936,0.295147,66572.0,66571.0,0.05998238]
[1729678743350,0.075147,66572.0,66571.0,0.05998238]
[1729678743537,0.185147,66572.0,66571.0,0.05998238]
[1729678743732,0.185147,66572.0,66571.0,0.075149]
[1729678744352,0.185147,66572.0,66571.0,0.13513138]
[1729678745250,0.185147,66572.0,66571.0,0.13510939]
[1729678745638,0.185147,66572.0,66571.0,0.075149]
[1729678752747,0.45121251,66572.0,66571.0,0.075149]
[1729678752953,0.30103821,66572.0,66571.0,0.075149]
[1729678754151,0.11589121,66572.0,66571.0,0.075149]
[1729678754651,0.06975576,66572.0,66571.0,0.075149]
[1729678754846,0.06975576,66572.0,66571.0,0.185149]
[1729678756349,0.17975576,66572.0,66571.0,0.075149]
[1729678756955,0.11588946,66572.0,66571.0,0.185149]
[1729678757454,0.15017602,66572.0,66571.0,0.185149]
[1729678757642,0.26606548,66572.0,66571.0,0.185149]
[1729678760356,0.33532302,66572.0,66571.0,0.075149]
[1729678760850,0.185147,66572.0,66571.0,0.075149]
[1729678761555,0.11,66572.0,66571.0,0.075149]
[1729678761855,0.11,66572.0,66571.0,0.185149]
[1729678763248,0.185147,66572.0,66571.0,0.185149]
[1729678764945,0.11,66572.0,66571.0,0.185149]
[1729678765150,0.00203603,66577.0,66576.0,0.075143]
[1729678765459,0.00203603,66577.0,66576.0,0.295143]
[1729678765645,0.00203603,66577.0,66576.0,0.39672804]
[1729678765851,0.00277706,66584.0,66579.0,0.07514]
[1729678766053,0.00277706,66584.0,66582.0,0.11]
[1729678766354,0.00277706,66584.0,66583.0,0.108435]
[1729678767762,0.07363023,66584.0,66582.0,0.11]
[1729678768055,0.11697725,66583.0,66582.0,0.11]
[1729678768955,0.11697725,66583.0,66581.0,0.0342]
[1729678769161,0.11697725,66582.0,66581.0,0.109337]
[1729678769461,0.11697725,66582.0,66581.0,0.219337]
[1729678769852,0.23584334,66582.0,66581.0,0.219337]
[1729678770252,0.28196742,66582.0,66581.0,0.219337]
[1729678770862,0.11697725,66582.0,66581.0,0.219337]
[1729678773954,0.23584334,66582.0,66581.0,0.219337]
[1729678774155,0.28196742,66582.0,66581.0,0.219337]
[1729678774353,0.28196742,66582.0,66581.0,0.185137]
[1729678775362,0.11697725,66582.0,66581.0,0.185137]
[1729678775765,0.00277706,66584.0,66583.0,0.075135]
[1729678776851,0.00277706,66584.0,66583.0,0.185135]
[1729678778168,0.11277706,66584.0,66583.0,0.185135]
[1729678779661,0.00277706,66584.0,66583.0,0.185135]
[1729678782757,0.03494154,66584.0,66583.0,0.185135]
[1729678782955,0.18482697,66584.0,66583.0,0.185135]
[1729678783356,0.26829235,66584.0,66583.0,0.185135]
[1729678785360,0.11840692,66584.0,66583.0,0.185135]
[1729678785875,0.26829235,66584.0,66583.0,0.185135]
[1729678786056,0.11840692,66584.0,66583.0,0.185135]
[1729678788286,0.11840692,66584.0,66583.0,0.11]
[1729678789462,0.11840692,66584.0,66583.0,0.185135]
[1729678789875,0.28328626,66584.0,66583.0,0.185135]
[1729678790168,0.11840692,66584.0,66583.0,0.185135]
[1729678790766,0.00277706,66584.0,66583.0,0.36244493]
[1729678791671,0.00277706,66584.0,66583.0,0.2875636]
[1729678792966,0.00305652,66587.0,66583.0,0.2875636]
[1729678793168,0.00305652,66587.0,66586.0,0.185132]
[1729678793557,0.00305652,66587.0,66586.0,0.25992671]
[1729678794676,0.00305652,66587.0,66586.0,0.28772104]
[1729678797074,0.00305652,66587.0,66586.0,0.28774738]
[1729678797866,0.00305652,66587.0,66586.0,0.185132]
[1729678800871,0.00305652,66587.0,66586.0,0.21218421]
[1729678805068,0.11749783,66587.0,66586.0,0.20189396]
[1729678805271,0.08425236,66587.0,66586.0,0.31189396]
[1729678805485,0.00356188,66594.0,66593.0,0.075124]
[1729678805781,0.00356188,66594.0,66593.0,0.185124]
[1729678805986,0.00397821,66601.0,66596.0,0.07512]
[1729678806288,0.00397821,66601.0,66596.0,0.28132]
[1729678807275,0.0334,66603.0,66596.0,0.39132]
[1729678807477,0.0334,66603.0,66602.0,0.185114]
[1729678807691,0.0334,66603.0,66602.0,0.11]
[1729678808178,0.0334,66603.0,66602.0,0.185114]
[1729678809483,0.16925315,66604.0,66603.0,0.075112]
[1729678809984,0.00427661,66604.0,66603.0,0.075112]
[1729678810490,0.16915964,66604.0,66603.0,0.075112]
[1729678810877,0.05038485,66604.0,66603.0,0.075112]
[1729678811588,0.16912369,66604.0,66603.0,0.075112]
[1729678812888,0.21523193,66604.0,66603.0,0.075112]
[1729678813095,0.00427661,66604.0,66603.0,0.075112]
[1729678814681,0.00427661,66604.0,66603.0,0.185112]
[1729678814890,0.00427661,66604.0,66603.0,0.075112]
[1729678815291,0.00427661,66604.0,66603.0,0.185112]
[1729678815591,0.00427661,66604.0,66603.0,0.075112]
[1729678816180,0.00427661,66604.0,66603.0,0.10167317]
[1729678817493,0.07938761,66604.0,66603.0,0.10167317]
[1729678818796,0.00427661,66604.0,66603.0,0.10167317]
[1729678822991,0.00427661,66604.0,66598.0,0.11]
[1729678822992,0.45471661,66604.0,66583.0,0.04491583]
[1729678823191,0.11,66584.0,66583.0,0.075135]
[1729678823387,0.11,66586.0,66585.0,0.075133]
[1729678823579,0.1438,66586.0,66585.0,0.075133]
[1729678825988,0.0338,66586.0,66585.0,0.075133]
[1729678828301,0.143527,66590.0,66589.0,0.075128]
[1729678828500,0.253527,66590.0,66589.0,0.17990228]
[1729678828794,0.253527,66590.0,66589.0,0.26959713]
[1729678830294,0.253527,66590.0,66589.0,0.17990228]
[1729678830998,0.1784,66590.0,66589.0,0.17990228]
[1729678831904,0.1784,66590.0,66589.0,0.1791912]
[1729678834184,0.0684,66590.0,66589.0,0.1791912]
[1729678836595,0.034,66590.0,66589.0,0.1791912]
[1729678839004,0.0327,66597.0,66596.0,0.07512]
[1729678839206,0.1427,66597.0,66596.0,0.07512]
[1729678840000,0.217819,66597.0,66596.0,0.07512]
[1729678842105,0.217819,66597.0,66596.0,0.14984527]
[1729678843000,0.217819,66597.0,66587.0,0.08969485]
[1729678843001,0.45048,66596.0,66587.0,0.08969485]
[1729678843204,0.075134,66585.0,66584.0,0.075133]
[1729678843406,0.185134,66585.0,66584.0,0.075133]
[1729678843909,0.185134,66585.0,66584.0,0.10165926]
[1729678848596,0.185134,66585.0,66584.0,0.02652626]
[1729678848914,0.075136,66582.0,66581.0,0.075137]
[1729678849100,0.185136,66582.0,66581.0,0.075137]
[1729678850210,0.185136,66582.0,66581.0,0.19366227]
[1729678850597,0.185136,66582.0,66581.0,0.2210459]
[1729678850908,0.185136,66582.0,66581.0,0.10385812]
[1729678851814,0.185136,66582.0,66581.0,0.10391714]
[1729678854506,0.185136,66582.0,66581.0,0.19378278]
[1729678854909,0.185136,66582.0,66581.0,0.10391714]
[1729678855902,0.295136,66582.0,66581.0,0.10391714]
[1729678856103,0.185136,66582.0,66581.0,0.10391714]
[1729678857907,0.295136,66582.0,66581.0,0.10391714]
[1729678858113,0.295136,66582.0,66580.0,0.02747567]
[1729678858114,0.11,66582.0,66580.0,0.02747567]
[1729678858315,0.11,66582.0,66576.0,0.075142]
[1729678858516,0.11,66582.0,66570.0,0.20616]
[1729678858517,0.075142,66578.0,66577.0,0.075142]
[1729678859206,0.185142,66578.0,66577.0,0.075142]
[1729678860218,0.11,66578.0,66577.0,0.075142]
[1729678861423,0.11,66580.0,66579.0,0.07514]
[1729678865225,0.11,66580.0,66579.0,0.26955725]
[1729678868026,0.075137,66581.0,66579.0,0.19441725]
[1729678868227,0.11,66583.0,66582.0,0.075136]
[1729678868429,0.11,66583.0,66582.0,0.17971401]
[1729678868825,0.075133,66585.0,66582.0,0.17971401]
[1729678869137,0.185125,66593.0,66589.0,0.075128]
[1729678869315,0.185125,66593.0,66592.0,0.075125]
[1729678869724,0.075125,66593.0,66592.0,0.075125]
[1729678869930,0.075127,66590.0,66589.0,0.0366]
[1729678870227,0.185127,66590.0,66589.0,0.111728]
[1729678871129,0.185127,66590.0,66589.0,0.13830664]
[1729678871333,0.185127,66590.0,66589.0,0.24272931]
[1729678872720,0.17664325,66590.0,66589.0,0.13830664]
[1729678873417,0.25177025,66590.0,66589.0,0.13830664]
[1729678874423,0.25177025,66590.0,66589.0,0.10170664]
[1729678879739,0.2518045,66590.0,66589.0,0.10170664]
[1729678880839,0.075127,66590.0,66589.0,0.40573816]
[1729678881151,0.11,66602.0,66599.0,0.075117]
[1729678881336,0.00427661,66604.0,66601.0,0.185113]
[1729678881637,0.00427661,66604.0,66603.0,0.075112]
[1729678881638,0.07938761,66604.0,66603.0,0.075112]
[1729678881838,0.07938761,66604.0,66603.0,0.17877193]
[1729678882333,0.07938761,66604.0,66603.0,0.25367496]
[1729678882537,0.07938761,66604.0,66603.0,0.15001503]
[1729678882935,0.07938761,66604.0,66603.0,0.17881842]
[1729678885137,0.00427661,66604.0,66603.0,0.17881842]
[1729678885430,0.075109,66607.0,66606.0,0.075109]
[1729678885629,0.075109,66607.0,66606.0,0.28881542]
[1729678886134,0.075109,66607.0,66606.0,0.36355008]
[1729678886931,0.075109,66607.0,66606.0,0.25984366]
[1729678887134,0.075109,66607.0,66606.0,0.185109]
[1729678887335,0.00434642,66608.0,66607.0,0.075108]
[1729678887526,0.00434642,66608.0,66607.0,0.17811]
[1729678887731,0.00434642,66608.0,66607.0,0.11993087]
[1729678888240,0.00434642,66608.0,66607.0,0.11991752]
[1729678889246,0.11434642,66608.0,66607.0,0.075108]
[1729678890542,0.11434642,66608.0,66607.0,0.11991752]
[1729678890837,0.11434642,66608.0,66607.0,0.075108]
[1729678891543,0.11434642,66608.0,66607.0,0.11991752]
[1729678891837,0.11434642,66608.0,66607.0,0.075108]
[1729678895344,0.18945342,66608.0,66607.0,0.075108]
[1729678895839,0.25729069,66608.0,66607.0,0.075108]
[1729678896040,0.07218369,66608.0,66607.0,0.075108]
[1729678897938,0.0872402,66608.0,66606.0,0.11]
[1729678898136,0.1182919,66608.0,66606.0,0.11]
[1729678898333,0.1182919,66608.0,66606.0,0.185109]
[1729678898334,0.11394548,66607.0,66606.0,0.185109]
[1729678898555,0.11394706,66607.0,66606.0,0.185109]
[1729678900052,0.06783885,66607.0,66606.0,0.185109]
[1729678901847,0.11394702,66607.0,66606.0,0.11]
[1729678902041,0.11394702,66607.0,66606.0,0.185109]
[1729678902752,0.0279179,66609.0,66606.0,0.21322498]
[1729678903049,0.11108,66610.0,66608.0,0.18469175]
[1729678903246,0.075106,66609.0,66608.0,0.25979775]
[1729678903448,0.075106,66609.0,66608.0,0.36305978]
[1729678903839,0.075106,66609.0,66608.0,0.25979775]
[1729678904247,0.075106,66609.0,66608.0,0.36270044]
[1729678905139,0.075106,66609.0,66608.0,0.28800869]
[1729678907847,0.075106,66609.0,66608.0,0.28803605]
[1729678909244,0.00502696,66611.0,66608.0,0.28803605]
[1729678909245,0.00502696,66611.0,66610.0,0.075105]
[1729678909448,0.00502696,66611.0,66610.0,0.28803505]
[1729678910758,0.00502696,66611.0,66610.0,0.37792399]
[1729678911056,0.07283238,66611.0,66610.0,0.185105]
[1729678912459,0.03604764,66611.0,66610.0,0.185105]
[1729678912654,0.07302655,66611.0,66610.0,0.185105]
[1729678914057,0.07302655,66611.0,66610.0,0.2127862]
[1729678917455,0.03628341,66611.0,66610.0,0.2127862]
[1729678917659,0.00502696,66611.0,66610.0,0.2127862]
[1729678917860,0.00502696,66611.0,66610.0,0.43863256]
[1729678918554,0.00482078,66614.0,66613.0,0.075101]
[1729678918749,0.00482078,66614.0,66613.0,0.41094736]
[1729678925256,0.00482078,66614.0,66613.0,0.185101]
[1729678925557,0.00482078,66614.0,66613.0,0.41057241]
[1729678925957,0.05092385,66614.0,66613.0,0.185101]
[1729678926160,0.04160224,66614.0,66613.0,0.185101]
[1729678926364,0.11910998,66614.0,66613.0,0.185101]
[1729678929685,0.07300691,66614.0,66613.0,0.391141]
[1729678929862,0.07300691,66614.0,66613.0,0.281141]
[1729678933157,0.00492213,66618.0,66617.0,0.075097]
[1729678933363,0.00492213,66618.0,66617.0,0.41068617]
[1729678934059,0.00492213,66618.0,66617.0,0.28801326]
[1729678935259,0.00492213,66618.0,66617.0,0.41062666]
[1729678935574,0.00492213,66618.0,66617.0,0.28801326]
[1729678936071,0.00669939,66625.0,66617.0,0.52043813]
[1729678936275,0.00669939,66625.0,66620.0,0.11]
[1729678936482,0.075074,66637.0,66627.0,0.075085]
[1729678936765,0.075075,66636.0,66627.0,0.41042613]
[1729678936972,0.08034134,66635.0,66627.0,0.41042613]
[1729678937763,0.08034134,66635.0,66627.0,0.33534113]
[1729678937963,0.08034134,66635.0,66631.0,0.185081]
[1729678938265,0.08034134,66635.0,66631.0,0.41042213]
[1729678938468,0.00526434,66635.0,66631.0,0.41042213]
[1729678938666,0.075078,66634.0,66631.0,0.28799726]
[1729678939271,0.075078,66634.0,66631.0,0.37772956]
[1729678940157,0.075078,66634.0,66631.0,0.28799726]
[1729678940968,0.11526434,66635.0,66631.0,0.37772956]
[1729678941172,0.03788004,66632.0,66631.0,0.06486596]